Cogmind - Beta 12 @@@ ROGUE MODE // 2023.05.27 @ 00:11:01 Player: snowphil Result: Destroyed by as-46592 with Assembled F-torch Performance ------------- Evolutions (0) 0 Regions Visited (2) 400 Robots Destroyed (27) 135 Value Destroyed (566) 566 Prototype IDs (1) 20 Alien Tech Used (0) 0 Bonus (0) 0 TOTAL SCORE: 1121 Bonus ------- None Cogmind --------- Core Integrity 0/250 Matter 251/300 Energy 86/125 System Corruption 8% Temperature Warning (387) Movement Walking (190) Ox1 Location -10/Mines Parts ------- > --- POWER (1) -------- Light Ion Engine > --- PROPULSION (2) --- Aluminum Leg > --- UTILITY (2) ------ Medium Storage Unit Experimental Sensor Array > --- WEAPON (2) ------- Beam Cannon > --- INVENTORY (10) --- Light Ion Engine Hover Unit Improved Heat Sink Signal Interpreter Beam Cannon Mining Laser Peak State ------------ > --- POWER ------------ Light Nuclear Core > --- PROPULSION ------- Aluminum Leg Aluminum Leg > --- UTILITY ---------- Medium Storage Unit Experimental Sensor Array > --- WEAPON ----------- Beam Cannon Light Cannon > --- INVENTORY -------- Light Ion Engine Light Ion Engine Aluminum Leg Hover Unit Improved Heat Sink Sensor Array Signal Interpreter Beam Cannon Grenade Launcher Mining Laser [Rating: 18] Favorites ----------- Power Light Ion Engine Engine Light Ion Engine Power Core Light Nuclear Core Propulsion Aluminum Leg Leg Aluminum Leg Utility Medium Storage Unit Device Experimental Sensor Array Storage Medium Storage Unit Protection Light Armor Plating Weapon Beam Cannon Energy Gun EM Pulse Gun Energy Cannon Beam Cannon Ballistic Cannon Light Cannon Launcher Grenade Launcher Build | -11 -10 -10 ------- Run | Jun Mat Min Slots Evolved . | . . . Power . | . . . Propulsion . | . . . Utility . | . . . Weapon . | . . . Parts Attached 32 | 6 16 10 Power 4 | 1 1 2 Engine 3 | 1 1 1 Core 1 | . . 1 Reactor . | . . . Propulsion 6 | 2 3 1 Treads . | . . . Leg 6 | 2 3 1 Wheel . | . . . Hover . | . . . Flight . | . . . Utility 7 | 1 3 3 Device 3 | . 1 2 Storage 2 | 1 1 . Processor . | . . . Hackware . | . . . Protection 2 | . 1 1 Artifact . | . . . Weapon 15 | 2 9 4 Energy Gun 6 | 2 4 . Energy Cannon 4 | . 2 2 Ballistic Gun . | . . . Ballistic Cannon 1 | . 1 . Launcher 4 | . 2 2 Special Weapon . | . . . Impact Weapon . | . . . Slashing Weapon . | . . . Piercing Weapon . | . . . Special Melee Weapon . | . . . Unidentified Prototypes 1 | . . 1 Parts Lost 6 | . 1 5 Power 1 | . . 1 Propulsion 2 | . . 2 Utility . | . . . Weapon 3 | . 1 2 Highest Loss Streak 5 | . 1 5 To Critical Strikes . | . . . Average Slot Usage (%) 97 | . 96 98 Engine 10 | . 14 3 Core 3 | . . 10 Leg 27 | . 28 27 Device 1 | . . 4 Storage 14 | . 14 14 Protection 9 | . 10 9 Energy Gun 7 | . 12 . Energy Cannon 9 | . 9 10 Ballistic Cannon 8 | . 5 14 Launcher 1 | . 1 2 Naked Turns . | . . . Heaviest Build 24 | 12 22 24 Greatest Support 20 | 20 20 20 Greatest Overweight (x) 1 | 1 1 1 Average Overweight (x) . | . . . Largest Inventory Capacity 10 | 8 10 10 Average Capacity 9 | 7 9 10 Most Carried 10 | 7 10 10 Average Carried 9 | 2 9 9 Final Capacity 10 | 8 10 10 Final Carried 10 | 2 10 6 Class Distribution -------------------- 97% | Mutant Dominant Class ---------------- Mutant | -10/Materials Mutant | -10/Mines Resources | -11 -10 -10 ----------- Run | Jun Mat Min Matter Collected 583 | 248 222 113 Remotely . | . . . Salvage Created 680 | . 544 136 Parts 44 | . 31 13 Haulers Intercepted . | . . . Recyclers Shooed . | . . . Parts Field Recycled . | . . . Retrieved Matter . | . . . Parts Self-Destructed . | . . . Prevented . | . . . Kills | -11 -10 -10 ------- Run | Jun Mat Min Combat Hostiles Destroyed 21 | . 15 6 Guns 5 | . 5 . Cannons 8 | . 4 4 AOE 8 | . 6 2 Classes Destroyed 8 | . 6 2 Worker 3 | . 2 1 Builder 1 | . . 1 Recycler 1 | . 1 . Operator 1 | . 1 . Watcher 1 | . 1 . Swarmer 9 | . 6 3 Grunt 11 | . 9 2 Assembled 1 | . . 1 Best Kill Streak 6 | . 6 4 Combat Bots Only 5 | . 5 3 Max Kills in Single Turn 3 | . 3 3 Gunslinging . | . . . Exploded 3 | . 3 2 Melee . | . . . Uniques/NPCs Destroyed . | . . . Combat | -11 -10 -10 -------- Run | Jun Mat Min Damage Taken 1097 | . 356 741 Core 250 | . 66 184 Absorbed by Shields . | . . . Core Remaining (%) 100 | 100 . . Volleys Fired 54 | . 35 19 Largest 2 | . 2 2 Hottest 120 | . 120 95 Shots Fired 93 | . 61 32 Gun 38 | . 38 . Cannon 49 | . 18 31 Launcher 6 | . 5 1 Special . | . . . Kinetic 18 | . . 18 Thermal 39 | . 26 13 Explosive 6 | . 5 1 Electromagnetic 30 | . 30 . Robot Hit Streak 7 | . 7 6 Robot Miss Streak 4 | . 4 4 Penetration Max . | . . . Secondary Targets 1 | . 1 . Max Gunslinging Chain 1 | . 1 . Shots Hit Robots 51 | . 34 17 Core Hits 36 | . 23 13 Critical Kills . | . . . Critical Parts Destroyed . | . . . Critical Strikes . | . . . Melee Attacks . | . . . Impact . | . . . Slashing . | . . . Piercing . | . . . Sneak Attacks . | . . . Combat Hostiles . | . . . Follow-up Attacks . | . . . Damage Inflicted 1422 | . 949 473 Guns 320 | . 320 . Cannons 509 | . 211 298 Explosions 593 | . 418 175 Melee . | . . . Ramming . | . . . Kinetic 174 | . . 174 Thermal 479 | . 355 124 Explosive 496 | . 321 175 Electromagnetic 273 | . 273 . Impact . | . . . Slashing . | . . . Piercing . | . . . Highest Corruption 5 | . . 5 Average Corruption 4 | . . 4 Corruption Purged . | . . . Corruption Blocked . | . . . Effects 1 | . . 1 Misfires 1 | . . 1 Overload Shots . | . . . Overflow Damage 11 | . 10 1 Projectiles 1 | . . 1 Explosions 10 | . 10 . Melee . | . . . Knockbacks 1 | . . 1 Impact . | . . . Kinetic 1 | . . 1 Secondary . | . . . Self-Inflicted Damage 30 | . 7 23 Shots 2 | . 1 1 Rammed . | . . . Targets Rammed . | . . . Kicked . | . . . Crushed . | . . . Highest Temperature 369 | . 369 367 Average Temperature 107 | . 90 147 Received Heat Transfer 660 | . 165 495 Effects 2 | . 1 1 Shutdowns 1 | . 1 . Energy Bleed 1 | . . 1 Siege Activations . | . . . Robots Corrupted . | . . . Combat Hostiles . | . . . Parts Fried 2 | . 2 . Impact Corruptions . | . . . Robots Melted . | . . . Combat Hostiles . | . . . Parts Melted 2 | . 1 1 Heat Transferred 903 | . 644 259 Parts Sabotaged . | . . . Parts Stolen . | . . . Parts Stripped . | . . . Power Chain Reactions . | . . . Missiles Intercepted . | . . . Alert | -11 -10 -10 ------- Run | Jun Mat Min Peak Influence 392 | . 392 145 Initial 8 | . . 8 Average 114 | . 146 62 Maximum Alert Level 1 | . 1 . Low Security (%) 79 | 100 68 100 Level 1 20 | . 31 . Level 2 . | . . . Level 3 . | . . . Level 4 . | . . . Level 5 . | . . . High Security . | . . . Max Security . | . . . Squads Dispatched 3 | . 3 . Investigation 3 | . 3 . Extermination . | . . . Reinforcement . | . . . Assault . | . . . Garrison . | . . . Intercept . | . . . Searches Triggered . | . . . Construction Impeded . | . . . Haulers Reinforced . | . . . Active Scanning Responses . | . . . Cargo Convoy Interrupts . | . . . Stealth | -11 -10 -10 --------- Run | Jun Mat Min Distress Signals 1 | . 1 . Communications Jammed . | . . . Distress Signals . | . . . Times Spotted 49 | . 23 26 Peak Tracking Total 16 | . 5 16 Tactical Retreats 1 | . . 1 Traps | -11 -10 -10 ------- Run | Jun Mat Min Traps Triggered 3 | . 3 . Indirectly . | . . . Trap Hack Attempts . | . . . Triggered . | . . . Disarmed . | . . . Reprogrammed . | . . . Reused . | . . . Traps Extracted . | . . . Installed . | . . . Triggered . | . . . Machines | -11 -10 -10 ---------- Run | Jun Mat Min Machines Disabled 3 | . 3 . Max in Single Turn 1 | . 1 . Machines Repaired . | . . . Machines Sabotaged . | . . . Overloaded Fab Kills . | . . . Hacking | -11 -10 -10 --------- Run | Jun Mat Min Machines Accessed 8 | . 8 . Terminals 7 | . 7 . Fabricators . | . . . Repair Stations . | . . . Recycling Units 1 | . 1 . Scanalyzers . | . . . Garrison Access . | . . . Total Hacks 22 | . 22 . Successful 10 | . 10 . Failed 12 | . 12 . Catastrophic 1 | . 1 . Database Lockouts . | . . . Manual 10 | . 10 . Terminals 20 | . 20 . Fabricators . | . . . Repair Stations . | . . . Recycling Units 2 | . 2 . Scanalyzers . | . . . Garrison Access . | . . . Terminal Hacks 6 | . 6 . Branch Access Points 2 | . 2 . Emergency Access Points 1 | . 1 . Alert Level 1 | . 1 . Unreport Threat 1 | . 1 . Locate Traps 1 | . 1 . Fabricator Hacks . | . . . Repair Station Hacks . | . . . Recycling Unit Hacks 1 | . 1 . Retrieve Components 1 | . 1 . Scanalyzer . | . . . Garrison Access Hacks . | . . . Unauthorized Hacks 3 | . 3 . Terminals 2 | . 2 . Botnet 2 | . 2 . Fabricators . | . . . Repair Stations . | . . . Recycling Units 1 | . 1 . Reject 1 | . 1 . Scanalyzers . | . . . Garrison Access . | . . . Data Cores Recovered . | . . . Used . | . . . Hacking Detections 6 | . 6 . Full Trace Events . | . . . Feedback Events . | . . . Feedback Blocked . | . . . Robot Schematics Acquired . | . . . Robots Built . | . . . Authchips . | . . . Time . | . . . Total Robot Build Rating . | . . . Part Schematics Acquired . | . . . Parts Built . | . . . Authchips . | . . . Time . | . . . Total Part Build Rating . | . . . Parts Repaired . | . . . Time . | . . . Parts Recycled . | . . . Recycled Matter . | . . . Retrieved Matter . | . . . Retrieved Components 9 | . 9 . Parts Scanalyzed . | . . . Part Schematics Acquired . | . . . Parts Damaged . | . . . Bothacking | -11 -10 -10 ------------ Run | Jun Mat Min Used RIF Installer . | . . . Robots Hacked . | . . . Non-combat . | . . . Combat . | . . . Robot Hacks Applied . | . . . Relay Couplers Released . | . . . Fabnet Peak Effective % . | . . . Robots Rewired . | . . . Allies Hacked . | . . . Hacks Repelled . | . . . Allies | -11 -10 -10 -------- Run | Jun Mat Min Total Allies . | . . . Largest Group . | . . . Highest-Rated Group . | . . . Highest-Rated Ally . | . . . Total Orders . | . . . Ally Attacks . | . . . Total Damage . | . . . Kills . | . . . Allies Corrupted . | . . . Allies Melted . | . . . Intel | -11 -10 -10 ------- Run | Jun Mat Min Robot Analysis Total . | . . . Derelict Logs Recovered . | . . . Drone Launches . | . . . Drone Recoveries . | . . . Exploration | -11 -10 -10 ------------- Run | Jun Mat Min Turns Passed 2262 | 61 1445 756 Spaces Moved 1279 | 47 883 349 Core 20 | 20 . . Treads . | . . . Legs 1259 | 27 883 349 Wheels . | . . . Hover . | . . . Flight . | . . . Fastest Speed 50 | 50 120 120 Average Speed 153 | 95 142 189 Slowest Speed 190 | 120 190 190 Overloaded Moves . | . . . Propulsion Burnouts . | . . . Robots Hopped . | . . . Cave-ins Triggered . | . . . Exploration Rate (%) 55 | 3 99 64 Regions Visited 2 Branch Regions 1 Pre-discovered Areas 1 | . . 1 Known Exits Taken 1 | . 1 . Unknown Exits Taken 1 | 1 . . Scrap Searched 1 | . . 1 Spaces Dug . | . . . Terrain Destroyed 58 | . 46 12 Melee . | . . . Projectile . | . . . AOE 58 | . 46 12 Terrain Rammed . | . . . Walls Destroyed . | . . . Machines Disabled . | . . . Actions | -11 -10 -10 --------- Run | Jun Mat Min Total 1487 | 63 1011 413 Wait 86 | 3 51 32 Move 1277 | 46 882 349 Hop . | . . . Pick Up 24 | 8 16 . Fast Attach 2 | . 1 1 Attach 12 | 6 3 3 Detach . | . . . Swap 18 | . 12 6 Drop 14 | . 11 3 Fire 54 | . 35 19 Melee . | . . . Ram . | . . . Kick . | . . . Crush . | . . . Escape Stasis . | . . . Rewire . | . . . Trap . | . . . Miscellaneous . | . . . Route ------- -11/Junkyard -10/Materials (discovered 4 exits: [*Mat x3] / *Min) -10/Mines (discovered 2 exits: [*Mat x2]) History --------- Turn | Location | Event 5 | -11/Junkyard | Discovered new exit (range 13) 62 | -11/Junkyard | Entered Materials 149 | -10/Materials | Identified exit to Mines 299 | -10/Materials | Discovered new exit (range 7) 329 | -10/Materials | Build established: Mutant 543 | -10/Materials | Discovered new exit (range 9) 728 | -10/Materials | Discovered new exit (range 3) 1507 | -10/Materials | Entered Mines 1508 | -10/Mines | Learned location of Storage (-8) 1552 | -10/Mines | Received a Rocket Launcher from a helpful Derelict 1555 | -10/Mines | Discovered new exit (range 6) 1601 | -10/Mines | Discovered new exit (range 15) 2023 | -10/Mines | Found a damaged Exp. Sensor Array with a note attached 2027 | -10/Mines | Found Prototype Device 2027 | -10/Mines | Identified Exp. Sensor Array 2194 | -10/Mines | Assembled infested the area 2237 | -10/Mines | Core integrity fell below 50% 2257 | -10/Mines | Core integrity fell below 20% 2263 | -10/Mines | Destroyed by as-46592 with Assembled F-torch Last Messages --------------- [Achievement: Slippery One] 02236_ Lgt. Nuclear Core destroyed. 02236_ System corrupted by crushing effect (+1). 02236_ Knocked back. 02236_ Aluminum Leg destroyed. 02236_ Acquired 21 matter. 02240_ The unstable cave ceiling collapses. 02241_ as-01024 sneak attacks. 02241_ R-06 Scavenger knocked back. 02241_ Aluminum Leg destroyed. 02241_ System corrupted by crushing effect (+4). 02248_ as-01186 destroyed. 02259_ as-46592 knocked back. 02262_ System corrupted: FCS attempts to trigger Beam Cannon. 02262_ System corrupted: Beam Cannon misfires. 02262_ Terrain Scanner melted. 02262_ U-05 Engineer destroyed. 02263_ Overheating: Energy bleed (-19). 02263_ Lgt. Cannon destroyed. 02263_ System corrupted by crushing effect (+3). Map ----- +----------------------------------------------------+ | | | | | ?????????????????????????????????????????????????? | | ????????????????????#####????????????????????????? | | ???????##########?## ##???????????????????????? | | ??????## ## ### ##??????????????????????? | | ?????## !! #??????????????????????? | | ###### #??????????????#####???? | | # ##???############ ####? | | ##????# ## | | ### ##?????# # | | #####?#######??????# ######### ## | | ####?????????????????## #???????####### | | #####????????????????????# #?????????????## | | ##????????????????????????# ##??????????????# | | ##????????????????????????# #???????????????# | | #####????????????????????# #???#####???????# | | # #????????????????????# #??## ##??????# | | # ## #????????????????????# #?## ##?????## | | ### ##########????????#### #?# < #??????? | | #?# #???????## # #?# ? #?????## | | # ##?######### #???????# #?## """ #?????# | | ####??????????# #???????# ####%""" ##????## | | ##????????????# ###????##% !=ku % % """ #????## | | ##??#####????# ##???# aa=%######% ##???# | | #### ##???# #####@a !##????## ##??# | | ##??## a## ##??????## #??## | | ##??## % # #????????# #???### | | #### # #????????# ##?????# | | ######## % %#????????# ?###??????? | | ##??????## %= " #????????# #????????? | | ??????# = #????????# #????????? | | ?# #### #### #????????# #????????? | | # %= # #??? #????????# ########## | | # | !*% # ####??? #????????# | | # = % % # #?????? #????????# | | #####?## =# #####???????#?????????############# | | ????????#? #??????????????????????????????????? | | ????????# #???????????????????????????????????# | | ???????# #??????????????????????????????????## | | ?????? """ #?????????????????????????????????## | | ????? """ ?????????????????????????????????# | | ????# """ ?????????????????????????????????# | | ????# ????????????????????????????????## | | ????## #?? ?????????????????????????????????## | | ?????###??? ?????????????????????????????????# | | ???????????#### ?????????????????????????????????? | | ?????????????????????????????????????????????????? | | ?????????????????????????????????????????????????# | | ?????????????????????????????????????????????????# | +----------------------------------------------------+ Best States ------------- Heat Dissipation 39 Energy Generation 14 Energy Capacity 160 Matter Stores 300 Matter Capacity 300 Sight Range 16 Robot Scan Range 20 Terrain Scan Density 10 Armor Coverage 150 Evasion (%) 55 Item Schematics ----------------- None Robot Schematics ------------------ None Fabricated ------------ Nothing Alien Tech Used ----------------- None Achievements -------------- Slippery One Challenges ------------ None Game ------ Seed ComponentExplosiveSplitter Manual? 0 Play Time 00:27:40 Cumulative 112.4 hours Start 2023.05.26 @ 23:44:05 End 2023.05.27 @ 00:11:01 Sessions 1 Manual Loads 0 Difficulty Rogue Special Mode None Game No. 14 Rogue 12 Adventurer 0 Explorer 2 Win Type - Total 3 Types 0/0/0/3/0/0/0/0/0 Lore% 31 Gallery% 36 Achievement% 45 Wizard Run 0 Options --------- ASCII 0 Keyboard 0 Movement Mouse Keybinds 0 Fullscreen 1 Font 18/SmallcapsGlow Map View 70x50 Tactical HUD 1 Map Filters NONE Filters NONE Steam 1 RUN: c5d0b0f9-6c7d-4b96-8703-3accb4c6a1ee